fUST/lending_fUST_20250221
["ID","MTS","AMOUNT","RATE_DAILY","PERIOD"]
[353817033,1740076251604,-549.02,0.00014027,2]
[353817034,1740076251614,-500.0,0.00014027,2]
[353817035,1740076251624,-500.0,0.00014027,2]
[353817036,1740076251634,-500.0,0.00014027,2]
[353817037,1740076251644,-307.51127372,0.00014027,2]
[353817038,1740076251658,-500.0,0.00014027,2]
[353817039,1740076251667,-476.16308693,0.00014027,2]
[353817040,1740076251677,-971.06,0.00014027,2]
[353817041,1740076251688,-500.0,0.00014027,2]
[353817042,1740076251698,-500.0,0.00014027,2]
[353817043,1740076251708,-500.0,0.00014027,2]
[353817044,1740076251718,-1489.95,0.00014027,2]
[353817045,1740076251728,-500.0,0.00014027,2]
[353817046,1740076251737,-500.0,0.00014027,2]
[353817047,1740076251746,-500.0,0.00014027,2]
[353817048,1740076251756,-500.0,0.00014027,2]
[353817049,1740076251766,-500.0,0.00014027,2]
[353817050,1740076251775,-500.0,0.00014027,2]
[353817051,1740076251785,-793.63,0.00014027,2]
[353817052,1740076251794,-500.0,0.00014027,2]
[353817053,1740076251804,-500.0,0.00014027,2]
[353817054,1740076251813,-807.41,0.00014027,2]
[353817055,1740076251823,-500.0,0.00014027,2]
[353817056,1740076251833,-565.76,0.00014027,2]
[353817057,1740076251842,-500.0,0.00014027,2]
[353817058,1740076251851,-500.0,0.00014027,2]
[353817059,1740076251861,-625.95,0.00014027,2]
[353817060,1740076251870,-547.01087436,0.00014027,2]
[353817061,1740076251880,-500.0,0.00014027,2]
[353817062,1740076251889,-500.0,0.00014027,2]
[353817063,1740076251899,-10409.39,0.00014027,2]
[353817064,1740076251910,-865.67,0.00014027,2]
[353817065,1740076251919,-500.0,0.00014027,2]
[353817066,1740076251929,-605.73,0.00014027,2]
[353817067,1740076251938,-17685.15,0.00014027,2]
[353817068,1740076251947,-500.0,0.00014027,2]
[353817069,1740076251957,-500.0,0.00014027,2]
[353817070,1740076251967,-500.0,0.00014027,2]
[353817071,1740076251976,-500.0,0.00014027,2]
[353817072,1740076251985,-3965.85,0.00014027,2]
[353817073,1740076251994,-651.6,0.00014027,2]
[353817074,1740076252004,-2324.79,0.00014027,2]
[353817075,1740076252013,-500.0,0.00014027,2]
[353817076,1740076252023,-3893.67,0.00014027,2]
[353817077,1740076252032,-729.57,0.00014027,2]
[353817078,1740076252041,-907.2,0.00014027,2]
[353817079,1740076252051,-825.36,0.00014027,2]
[353817080,1740076252060,-2151.45,0.00014027,2]
[353817081,1740076252069,-500.0,0.00014027,2]
[353817082,1740076252079,-500.0,0.00014027,2]
[353817083,1740076252088,-1651.3,0.00014027,2]
[353817084,1740076252097,-500.0,0.00014027,2]
[353817085,1740076252107,-1126.07,0.00014027,2]
[353817086,1740076252116,-500.0,0.00014027,2]
[353817087,1740076252126,-635.52,0.00014027,2]
[353817088,1740076252135,-1346.93,0.00014027,2]
[353817089,1740076252143,-500.0,0.00014027,2]
[353817090,1740076252152,-1388.89,0.00014027,2]
[353817091,1740076252162,-500.0,0.00014027,2]
[353817092,1740076252170,-47036.24,0.00014027,2]
[353817093,1740076252180,-19791.69,0.00014027,2]
[353817094,1740076252190,-500.0,0.00014027,2]
[353817095,1740076252199,-3512.59,0.00014027,2]
[353817096,1740076252208,-2717.43,0.00014027,2]
[353817097,1740076252217,-500.0,0.00014027,2]
[353817098,1740076252226,-7818.5,0.00014027,2]
[353817099,1740076252236,-636.51,0.00014027,2]
[353817100,1740076252245,-1361.67,0.00014027,2]
[353817101,1740076252255,-500.0,0.00014027,2]
[353817102,1740076252265,-1466.88,0.00014027,2]
[353817103,1740076252274,-500.0,0.00014027,2]
[353817104,1740076252284,-500.0,0.00014027,2]
[353817105,1740076252293,-500.0,0.00014027,2]
[353817106,1740076252303,-1051.97,0.00014027,2]
[353817107,1740076252312,-4641.17,0.00014027,2]
[353817108,1740076252321,-4362.45,0.00014027,2]
[353817109,1740076252330,-500.0,0.00014027,2]
[353817110,1740076252339,-2680.77,0.00014027,2]
[353817111,1740076252349,-500.0,0.00014027,2]
[353817112,1740076252358,-876.1,0.00014027,2]
[353817113,1740076252368,-500.0,0.00014027,2]
[353817114,1740076252377,-567.17,0.00014027,2]
[353817115,1740076252386,-2034.24,0.00014027,2]
[353817116,1740076252395,-612.16,0.00014027,2]
[353817117,1740076252404,-535.83,0.00014027,2]
[353817118,1740076252414,-527.16,0.00014027,2]
[353817119,1740076252423,-500.0,0.00014027,2]
[353817120,1740076252432,-1517.61,0.00014027,2]
[353817121,1740076252441,-506.67,0.00014027,2]
[353817122,1740076252450,-2602.51,0.00014027,2]
[353817123,1740076252459,-1916.95,0.00014027,2]
[353817124,1740076252468,-500.0,0.00014027,2]
[353817125,1740076252477,-500.0,0.00014027,2]
[353817126,1740076252487,-511.13,0.00014027,2]
[353817127,1740076252496,-500.0,0.00014027,2]
[353817128,1740076252505,-629.92,0.00014027,2]
[353817129,1740076252515,-500.0,0.00014027,2]
[353817130,1740076252525,-500.0,0.00014027,2]
[353817131,1740076252534,-5866.62,0.00014027,2]
[353817132,1740076252544,-2113.59,0.00014027,2]
[353817133,1740076252554,-500.0,0.00014027,2]
[353817134,1740076252564,-500.0,0.00014027,2]
[353817135,1740076252574,-873.01,0.00014027,2]
[353817136,1740076252584,-2177.13,0.00014027,2]
[353817137,1740076252593,-500.0,0.00014027,2]
[353817138,1740076252603,-662.43,0.00014027,2]
[353817139,1740076252613,-1620.44,0.00014027,2]
[353817140,1740076252622,-500.0,0.00014027,2]
[353817141,1740076252633,-500.0,0.00014027,2]
[353817142,1740076252731,-500.0,0.00014027,2]
[353817143,1740076252740,-500.0,0.00014109,2]
[353817144,1740076252750,-500.0,0.00014109,2]
[353817145,1740076252760,-500.0,0.00014109,2]
[353817146,1740076252770,-500.0,0.00014109,2]
[353817147,1740076252780,-500.0,0.00014109,2]
[353817148,1740076252789,-166.08861043,0.00014109,2]
[353817149,1740076252798,-500.0,0.00014109,2]
[353817150,1740076252808,-500.0,0.00014109,2]
[353817151,1740076252817,-500.0,0.00014109,2]
[353817152,1740076252827,-500.0,0.00014109,2]
[353817153,1740076252836,-788.73,0.00014109,2]
[353817154,1740076252846,-500.0,0.00014109,2]
[353817155,1740076252855,-500.0,0.00014109,2]
[353817156,1740076252865,-500.0,0.00014109,2]
[353817157,1740076252874,-500.0,0.00014109,2]
[353817158,1740076252884,-500.0,0.00014109,2]
[353817159,1740076252893,-982.3,0.00014109,2]
[353817160,1740076252902,-500.0,0.00014109,2]
[353817161,1740076252913,-500.0,0.00014109,2]
[353817162,1740076252923,-1729.35,0.00014109,2]
[353817163,1740076252933,-500.0,0.00014109,2]
[353817164,1740076252942,-630.66,0.00014109,2]
[353817165,1740076252951,-500.0,0.00014109,2]
[353817166,1740076252962,-500.0,0.00014109,2]
[353817167,1740076252972,-205.39338985,0.00014109,2]
[353817168,1740076252981,-1243.02,0.00014109,2]
[353817169,1740076252991,-779.92,0.00014109,2]
[353817170,1740076253000,-748.47,0.00014109,2]
[353817171,1740076253010,-718.84,0.00014109,2]
[353817172,1740076253019,-500.0,0.00014109,2]
[353817173,1740076253029,-500.0,0.00014109,2]
[353817174,1740076253039,-500.0,0.00014109,2]
[353817175,1740076253048,-729.54,0.00014109,2]
[353817176,1740076253057,-500.0,0.00014109,2]
[353817177,1740076253066,-500.0,0.00014109,2]
[353817178,1740076253076,-500.0,0.00014109,2]
[353817179,1740076253085,-299.97500029,0.00014109,2]
[353817180,1740076253094,-500.0,0.00014109,2]
[353817181,1740076253103,-809.4,0.00014109,2]
[353817182,1740076253112,-500.0,0.00014109,2]
[353817183,1740076253122,-688.33,0.00014109,2]
[353817184,1740076253131,-702.25,0.00014109,2]
[353817185,1740076253140,-500.0,0.00014109,2]
[353817186,1740076253150,-500.0,0.00014109,2]
[353817187,1740076253161,-500.0,0.00014109,2]
[353817188,1740076253171,-500.0,0.00014109,2]
[353817189,1740076253181,-500.0,0.00014109,2]
[353817190,1740076253190,-1210.8,0.00014109,2]
[353817191,1740076253200,-597.8,0.00014109,2]
[353817192,1740076253210,-691.73,0.00014109,2]
[353817193,1740076253220,-549.02,0.00014109,2]
[353817194,1740076253230,-500.0,0.00014109,2]
[353817195,1740076253239,-500.0,0.00014109,2]
[353817196,1740076253249,-500.0,0.00014109,2]
[353817197,1740076253259,-150.24,0.00014109,2]
[353817198,1740076253268,-971.06,0.00014109,2]
[353817199,1740076253278,-500.0,0.00014109,2]
[353817200,1740076253288,-500.0,0.00014109,2]
[353817201,1740076253297,-500.0,0.00014109,2]
[353817202,1740076253306,-1489.95,0.00014109,2]
[353817203,1740076253315,-500.0,0.00014109,2]
[353817204,1740076253324,-500.0,0.00014109,2]
[353817205,1740076253333,-500.0,0.00014109,2]
[353817206,1740076253343,-500.0,0.00014109,2]
[353817207,1740076253352,-500.0,0.00014109,2]
[353817208,1740076253361,-793.63,0.00014109,2]
[353817209,1740076253369,-500.0,0.00014109,2]
[353817210,1740076253378,-500.0,0.00014109,2]
[353817211,1740076253387,-807.41,0.00014109,2]
[353817212,1740076253396,-631.0206765,0.00014109,2]
[353817213,1740076253407,-565.76,0.00014109,2]
[353817214,1740076253416,-500.0,0.00014109,2]
[353817215,1740076253426,-500.0,0.00014109,2]
[353817216,1740076253435,-164.47214568,0.00014109,2]
[353817217,1740076253445,-205.00660045,0.00014109,2]
[353817218,1740076253455,-150.24,0.00014109,2]
[353817219,1740076253464,-166.96834915,0.00014109,2]
[353817220,1740076253474,-150.24,0.00014109,2]
[353817221,1740076253484,-150.24,0.00014109,2]
[353817222,1740076253494,-150.3,0.00014109,2]
[353817223,1740076253503,-150.38812417,0.00014109,2]
[353817224,1740076253514,-500.0,0.00014109,2]
[353817225,1740076253523,-625.95,0.00014109,2]
[353817226,1740076253532,-500.0,0.00014109,2]
[353817227,1740076253542,-500.0,0.00014109,2]
[353817228,1740076253552,-10409.39,0.00014109,2]
[353817229,1740076253561,-865.67,0.00014109,2]
[353817230,1740076253571,-500.0,0.00014109,2]
[353817231,1740076253581,-605.73,0.00014109,2]
[353817232,1740076253590,-17685.15,0.00014109,2]
[353817233,1740076253600,-500.0,0.00014109,2]
[353817234,1740076253610,-500.0,0.00014109,2]
[353817235,1740076253621,-500.0,0.00014109,2]
[353817236,1740076253631,-500.0,0.00014109,2]
[353817237,1740076253640,-3965.85,0.00014109,2]
[353817238,1740076253652,-651.6,0.00014109,2]
[353817239,1740076253663,-2324.79,0.00014109,2]
[353817240,1740076253673,-527.72618606,0.00014109,2]
[353817241,1740076253683,-3893.67,0.00014109,2]
[353817242,1740076253692,-729.57,0.00014109,2]
[353817243,1740076253703,-907.2,0.00014109,2]
[353817244,1740076253712,-825.36,0.00014109,2]
[353817245,1740076253722,-2151.45,0.00014109,2]
[353817246,1740076253732,-500.0,0.00014109,2]
[353817247,1740076253742,-500.0,0.00014109,2]
[353817248,1740076253751,-1651.3,0.00014109,2]
[353817249,1740076253761,-445.62761201,0.00014109,2]
[353817250,1740076253770,-1126.07,0.00014109,2]
[353817251,1740076253780,-500.0,0.00014109,2]
[353817252,1740076253789,-635.52,0.00014109,2]
[353817253,1740076253799,-1346.93,0.00014109,2]
[353817254,1740076253808,-500.0,0.00014109,2]
[353817255,1740076253817,-1388.89,0.00014109,2]
[353817256,1740076253827,-418.57688245,0.00014109,2]
[353817257,1740076253837,-47036.24,0.00014109,2]
[353817258,1740076253846,-19791.69,0.00014109,2]
[353817259,1740076253855,-500.0,0.00014109,2]
[353817260,1740076253865,-3512.59,0.00014109,2]
[353817261,1740076253874,-2717.43,0.00014109,2]
[353817262,1740076253883,-500.0,0.00014109,2]
[353817263,1740076253892,-7818.5,0.00014109,2]
[353817264,1740076253901,-636.51,0.00014109,2]
[353817265,1740076253912,-1361.67,0.00014109,2]
[353817266,1740076253922,-500.0,0.00014109,2]
[353817267,1740076253931,-1466.88,0.00014109,2]
[353817268,1740076253941,-500.0,0.00014109,2]
[353817269,1740076253951,-500.0,0.00014109,2]
[353817270,1740076253961,-500.0,0.00014109,2]
[353817271,1740076253971,-1051.97,0.00014109,2]
[353817272,1740076253980,-4641.17,0.00014109,2]
[353817273,1740076253990,-4362.45,0.00014109,2]
[353817274,1740076254000,-501.01678089,0.00014109,2]
[353817275,1740076254009,-2680.77,0.00014109,2]
[353817276,1740076254019,-500.0,0.00014109,2]
[353817277,1740076254029,-876.1,0.00014109,2]
[353817278,1740076254039,-500.0,0.00014109,2]
[353817279,1740076254048,-567.17,0.00014109,2]
[353817280,1740076254057,-2034.24,0.00014109,2]
[353817281,1740076254067,-535.83,0.00014109,2]
[353817282,1740076254076,-612.16,0.00014109,2]
[353817283,1740076254085,-527.16,0.00014109,2]
[353817284,1740076254095,-500.0,0.00014109,2]
[353817285,1740076254105,-1517.61,0.00014109,2]
[353817286,1740076254114,-506.67,0.00014109,2]
[353817287,1740076254124,-500.0,0.00014109,2]
[353817288,1740076254133,-2602.51,0.00014109,2]
[353817289,1740076254143,-500.0,0.00014109,2]
[353817290,1740076254153,-150.24,0.00014109,2]
[353817291,1740076254163,-500.0,0.00014109,2]
[353817292,1740076254173,-150.24,0.00014109,2]
[353817293,1740076254182,-150.3,0.00014109,2]
[353817294,1740076254191,-1916.95,0.00014109,2]
[353817295,1740076254200,-776.0,0.00014109,2]
[353817296,1740076254209,-500.0,0.00014109,2]
[353817297,1740076254220,-500.0,0.00014109,2]
[353817298,1740076254229,-500.0,0.00014109,2]
[353817299,1740076254239,-150.24,0.00014109,2]
[353817300,1740076254248,-501.0,0.00014109,2]
[353817301,1740076254258,-511.13,0.00014109,2]
[353817302,1740076254269,-500.0,0.00014109,2]
[353817303,1740076254359,-150.24,0.00014109,2]
[353817304,1740076254369,-150.24,0.00014109,2]
[353817305,1740076254379,-150.24,0.00014109,2]
[353817306,1740076254388,-629.92,0.00014109,2]
[353817307,1740076254398,-500.0,0.00014109,2]
[353817308,1740076254408,-5866.62,0.00014109,2]
[353817309,1740076254418,-2113.59,0.00014109,2]
[353817310,1740076254428,-337.822169,0.00014109,2]
[353817311,1740076254437,-500.0,0.00014109,2]
[353817312,1740076254447,-873.01,0.00014109,2]
[353817313,1740076254456,-917.08112692,0.00014109,2]
[353817314,1740076254623,-1260.04887308,0.00014109,2]
[353817315,1740076254634,-500.0,0.00014109,2]
[353817316,1740076254644,-662.43,0.00014109,2]
[353817317,1740076254658,-1620.44,0.00014109,2]
[353817318,1740076254667,-500.0,0.00014109,2]
[353817319,1740076254677,-500.0,0.00014109,2]
[353817320,1740076254686,-500.0,0.00014109,2]
[353817321,1740076254696,-500.0,0.00014173,2]
[353817322,1740076254706,-500.0,0.00014173,2]
[353817323,1740076254715,-500.79241487,0.00014173,2]
[353817324,1740076254725,-500.0,0.00014173,2]
[353817325,1740076254735,-500.65494477,0.00014173,2]
[353817326,1740076254745,-560.47866783,0.00014179,2]
[353817327,1740076254755,-500.0,0.00014191,2]
[353817328,1740076254765,-500.0,0.00014191,2]
[353817329,1740076254775,-500.0,0.00014191,2]
[353817330,1740076254784,-500.0,0.00014191,2]
[353817331,1740076254794,-500.0,0.00014191,2]
[353817332,1740076254803,-516.58222802,0.00014191,2]
[353817333,1740076254813,-500.0,0.00014191,2]
[353817334,1740076254823,-500.0,0.00014191,2]
[353817335,1740076254833,-500.0,0.00014191,2]
[353817336,1740076254842,-788.73,0.00014191,2]
[353817337,1740076254852,-500.0,0.00014191,2]
[353817338,1740076254861,-500.0,0.00014191,2]
[353817339,1740076254871,-500.0,0.00014191,2]
[353817340,1740076254880,-500.0,0.00014191,2]
[353817341,1740076254890,-500.0,0.00014191,2]
[353817342,1740076254899,-982.3,0.00014191,2]
[353817343,1740076254909,-500.0,0.00014191,2]
[353817344,1740076254918,-551.19747934,0.00014191,2]
[353817345,1740076254928,-1729.35,0.00014191,2]
[353817346,1740076254938,-500.0,0.00014191,2]
[353817347,1740076254948,-630.66,0.00014191,2]
[353817348,1740076254958,-500.0,0.00014191,2]
[353817349,1740076254968,-500.0,0.00014191,2]
[353817350,1740076254977,-1243.02,0.00014191,2]
[353817351,1740076254987,-779.92,0.00014191,2]
[353817352,1740076254996,-748.47,0.00014191,2]
[353817353,1740076255006,-718.84,0.00014191,2]
[353817354,1740076255016,-500.0,0.00014191,2]
[353817355,1740076255026,-500.0,0.00014191,2]
[353817356,1740076255035,-500.0,0.00014191,2]
[353817357,1740076255045,-729.54,0.00014191,2]
[353817358,1740076255054,-500.0,0.00014191,2]
[353817359,1740076255064,-500.0,0.00014191,2]
[353817360,1740076255074,-500.0,0.00014191,2]
[353817361,1740076255083,-500.0,0.00014191,2]
[353817362,1740076255093,-809.4,0.00014191,2]
[353817363,1740076255102,-500.0,0.00014191,2]
[353817364,1740076255112,-688.33,0.00014191,2]
[353817365,1740076255122,-702.25,0.00014191,2]
[353817366,1740076255132,-500.0,0.00014191,2]
[353817367,1740076255141,-500.0,0.00014191,2]
[353817368,1740076255151,-500.0,0.00014191,2]
[353817369,1740076255160,-500.0,0.00014191,2]
[353817370,1740076255170,-500.0,0.00014191,2]
[353817371,1740076255180,-1210.8,0.00014191,2]
[353817372,1740076255190,-597.8,0.00014191,2]
[353817373,1740076255200,-691.73,0.00014191,2]
[353817374,1740076255210,-549.02,0.00014191,2]
[353817375,1740076255220,-197.27798357,0.00014191,2]
[353817376,1740076255230,-500.0,0.00014191,2]
[353817377,1740076255239,-500.0,0.00014191,2]
[353817378,1740076255249,-971.06,0.00014191,2]
[353817379,1740076255259,-500.0,0.00014191,2]
[353817380,1740076255269,-275.56459209,0.00014191,2]
[353817381,1740076255279,-500.0,0.00014191,2]
[353817382,1740076255288,-1489.95,0.00014191,2]
[353817383,1740076255298,-500.0,0.00014191,2]
[353817384,1740076255307,-500.0,0.00014191,2]
[353817385,1740076255317,-500.0,0.00014191,2]
[353817386,1740076255327,-500.0,0.00014191,2]
[353817387,1740076255336,-500.0,0.00014191,2]
[353817388,1740076255345,-793.63,0.00014191,2]
[353817389,1740076255354,-500.0,0.00014191,2]
[353817390,1740076255364,-500.0,0.00014191,2]
[353817391,1740076255373,-807.41,0.00014191,2]
[353817392,1740076255382,-565.76,0.00014191,2]
[353817393,1740076255391,-152.23976862,0.00014191,2]
[353817394,1740076255731,-500.0,0.00013698,2]
[353817395,1740076255740,-500.0,0.00013698,2]
[353817396,1740076255750,-501.13974454,0.00013698,2]
[353817397,1740076255759,-500.0,0.00013698,2]
[353817398,1740076255769,-500.0,0.0001378,2]
[353817399,1740076255779,-378.3472983,0.00013863,2]
[353817400,1740076255788,-347.76023138,0.00014191,2]
[353817401,1740076255799,-500.0,0.00014191,2]
[353817402,1740076255808,-625.95,0.00014191,2]
[353817403,1740076255818,-500.0,0.00014191,2]
[353817404,1740076255827,-500.0,0.00014191,2]
[353817405,1740076255837,-10409.39,0.00014191,2]
[353817406,1740076255846,-500.0,0.00014191,2]
[353817407,1740076255856,-605.73,0.00014191,2]
[353817408,1740076255865,-17685.15,0.00014191,2]
[353817409,1740076255875,-500.0,0.00014191,2]
[353817410,1740076255884,-500.0,0.00014191,2]
[353817411,1740076255893,-500.0,0.00014191,2]
[353817412,1740076255903,-500.0,0.00014191,2]
[353817413,1740076255912,-3965.85,0.00014191,2]
[353817414,1740076255922,-651.6,0.00014191,2]
[353817415,1740076255931,-2324.79,0.00014191,2]
[353817416,1740076255940,-3893.67,0.00014191,2]
[353817417,1740076255949,-729.57,0.00014191,2]
[353817418,1740076255959,-907.2,0.00014191,2]
[353817419,1740076255969,-825.36,0.00014191,2]
[353817420,1740076255978,-2151.45,0.00014191,2]
[353817421,1740076255988,-500.0,0.00014191,2]
[353817422,1740076255998,-500.0,0.00014191,2]
[353817423,1740076256007,-1651.3,0.00014191,2]
[353817424,1740076256017,-1126.07,0.00014191,2]
[353817425,1740076256027,-500.0,0.00014191,2]
[353817426,1740076256036,-635.52,0.00014191,2]
[353817427,1740076256046,-1346.93,0.00014191,2]
[353817428,1740076256055,-500.0,0.00014191,2]
[353817429,1740076256065,-1388.89,0.00014191,2]
[353817430,1740076256074,-47036.24,0.00014191,2]
[353817431,1740076256084,-19791.69,0.00014191,2]
[353817432,1740076256093,-500.0,0.00014191,2]
[353817433,1740076256103,-3512.59,0.00014191,2]
[353817434,1740076256113,-2717.43,0.00014191,2]
[353817435,1740076256123,-500.0,0.00014191,2]
[353817436,1740076256132,-7818.5,0.00014191,2]
[353817437,1740076256141,-636.51,0.00014191,2]
[353817438,1740076256151,-1361.67,0.00014191,2]
[353817439,1740076256165,-500.0,0.00014191,2]
[353817440,1740076256175,-1466.88,0.00014191,2]
[353817441,1740076256185,-500.0,0.00014191,2]
[353817442,1740076256195,-500.0,0.00014191,2]
[353817443,1740076256205,-500.0,0.00014191,2]
[353817444,1740076256215,-1051.97,0.00014191,2]
[353817445,1740076256225,-4641.17,0.00014191,2]
[353817446,1740076256237,-4362.45,0.00014191,2]
[353817447,1740076256247,-2680.77,0.00014191,2]
[353817448,1740076256258,-500.0,0.00014191,2]
[353817449,1740076256269,-876.1,0.00014191,2]
[353817450,1740076256280,-500.0,0.00014191,2]
[353817451,1740076256290,-567.17,0.00014191,2]
[353817452,1740076256300,-2034.24,0.00014191,2]
[353817453,1740076256310,-535.83,0.00014191,2]
[353817454,1740076256320,-612.16,0.00014191,2]
[353817455,1740076256329,-527.16,0.00014191,2]
[353817456,1740076256339,-500.0,0.00014191,2]
[353817457,1740076256348,-1517.61,0.00014191,2]
[353817458,1740076256357,-506.67,0.00014191,2]
[353817459,1740076256367,-2602.51,0.00014191,2]
[353817460,1740076256376,-1916.95,0.00014191,2]
[353817461,1740076256386,-500.0,0.00014191,2]
[353817462,1740076256395,-500.0,0.00014191,2]
[353817463,1740076256414,-511.13,0.00014191,2]
[353817464,1740076256430,-500.0,0.00014191,2]
[353817465,1740076256446,-629.92,0.00014191,2]
[353817466,1740076256463,-500.0,0.00014191,2]
[353817467,1740076256481,-5866.62,0.00014191,2]
[353817468,1740076256498,-2113.59,0.00014191,2]
[353817469,1740076256515,-500.0,0.00014191,2]
[353817470,1740076256531,-873.01,0.00014191,2]
[353817471,1740076256547,-2177.13,0.00014191,2]
[353817472,1740076256560,-500.0,0.00014191,2]
[353817473,1740076256575,-662.43,0.00014191,2]
[353817474,1740076256592,-1620.44,0.00014191,2]
[353817475,1740076256609,-500.0,0.00014191,2]
[353817476,1740076256626,-500.0,0.00014191,2]
[353817477,1740076256639,-500.0,0.00014191,2]
[353817478,1740076256653,-2714.81,0.000142,2]
[353817479,1740076256671,-500.0,0.00014246,2]
[353817480,1740076256685,-500.0,0.00014273,2]
[353817481,1740076256700,-500.0,0.00014273,2]
[353817482,1740076256716,-500.0,0.00014273,2]
[353817483,1740076256730,-500.0,0.00014273,2]
[353817484,1740076256742,-500.0,0.00014273,2]
[353817485,1740076256755,-500.0,0.00014273,2]
[353817486,1740076256768,-500.0,0.00014273,2]
[353817487,1740076256782,-788.73,0.00014273,2]
[353817488,1740076256795,-500.0,0.00014273,2]
[353817489,1740076256808,-500.0,0.00014273,2]
[353817490,1740076256822,-500.0,0.00014273,2]
[353817491,1740076256835,-500.0,0.00014273,2]
[353817492,1740076256848,-500.0,0.00014273,2]
[353817493,1740076256861,-982.3,0.00014273,2]
[353817494,1740076256875,-500.0,0.00014273,2]
[353817495,1740076256887,-1729.35,0.00014273,2]
[353817496,1740076256901,-500.0,0.00014273,2]
[353817497,1740076256913,-630.66,0.00014273,2]
[353817498,1740076256926,-500.0,0.00014273,2]
[353817499,1740076256939,-500.0,0.00014273,2]
[353817500,1740076256952,-196.012323,0.00014273,2]
[353817501,1740076256965,-1243.02,0.00014273,2]
[353817502,1740076256979,-779.92,0.00014273,2]
[353817503,1740076256992,-748.47,0.00014273,2]
[353817504,1740076257001,-718.84,0.00014273,2]
[353817505,1740076257011,-500.0,0.00014273,2]
[353817506,1740076257020,-500.0,0.00014273,2]
[353817507,1740076257030,-225.82306828,0.00014273,2]
[353817508,1740076257039,-729.54,0.00014273,2]
[353817509,1740076257049,-500.0,0.00014273,2]
[353817510,1740076257059,-500.0,0.00014273,2]
[353817511,1740076257068,-500.0,0.00014273,2]
[353817512,1740076257077,-500.0,0.00014273,2]
[353817513,1740076257087,-809.4,0.00014273,2]
[353817514,1740076257096,-500.0,0.00014273,2]
[353817515,1740076257106,-688.33,0.00014273,2]
[353817516,1740076257116,-702.25,0.00014273,2]
[353817517,1740076257125,-500.0,0.00014273,2]
[353817518,1740076257139,-500.0,0.00014273,2]
[353817519,1740076257148,-500.0,0.00014273,2]
[353817520,1740076257158,-500.0,0.00014273,2]
[353817521,1740076257167,-500.0,0.00014273,2]
[353817522,1740076257176,-1210.8,0.00014273,2]
[353817523,1740076257186,-597.8,0.00014273,2]
[353817524,1740076257195,-691.73,0.00014273,2]
[353817525,1740076257205,-549.02,0.00014273,2]
[353817526,1740076257214,-500.0,0.00014273,2]
[353817527,1740076257224,-500.0,0.00014273,2]
[353817528,1740076257234,-971.06,0.00014273,2]
[353817529,1740076257244,-500.0,0.00014273,2]
[353817530,1740076257253,-500.0,0.00014273,2]
[353817531,1740076257264,-1489.95,0.00014273,2]
[353817532,1740076257467,-500.0,0.00014273,2]